Cogmind - Beta 14 *** ADVENTURER MODE // 2024.10.11 @ 19:10:20 Player: Jefffff Result: Destroyed by TB-69O(R) with Subdweller Beam Cannon Performance ------------- Evolutions (0) 0 Regions Visited (2) 400 Robots Destroyed (23) 115 Value Destroyed (580) 580 Prototype IDs (2) 40 Alien Tech Used (0) 0 Bonus (0) 0 TOTAL SCORE: 1135 Bonus ------- None Cogmind --------- Core Integrity 0/250 Matter 267/300 Energy 235/250 System Corruption 0% Temperature Cool (9) Movement Walking (330) Ox3 Location -10/Subcaves Parts ------- > --- POWER (1) -------- Ion Engine > --- PROPULSION (2) --- Improved Aluminum Leg Improved Aluminum Leg > --- UTILITY (2) ------ Huge Storage Unit Signal Interpreter > --- WEAPON (2) ------- Beam Cannon Battle Cannon > --- INVENTORY (25) --- Subdweller Power Source Spiked Treads Aluminum Leg Aluminum Leg Subdweller Monowheel Cooling System Cooling System Cooling System Medium Battery (150) Large Matter Pod (150) Weight Redist. System Visual Processing Unit Subdweller Optics Subdweller Optics Terrain Scanner Terrain Scan Processor Utility Shielding Scrap Shield Subdweller Laser Beam Cannon Beam Cannon Mining Laser Hammer Makeshift Sword Peak State ------------ > --- POWER ------------ Ion Engine > --- PROPULSION ------- Improved Aluminum Leg Improved Aluminum Leg > --- UTILITY ---------- Cooling System Huge Storage Unit > --- WEAPON ----------- Small Laser Particle Gun > --- INVENTORY -------- Ion Engine Light Ion Engine Aluminum Leg Aluminum Leg Aluminum Leg Improved Aluminum Leg Improved Aluminum Leg Cooling System Cooling System Medium Matter Pod Large Matter Pod Weight Redist. System Visual Processing Unit Signal Interpreter Terrain Scanner Terrain Scan Processor Small Laser Small Laser Small Laser Beam Cannon Beam Cannon Beam Cannon Beam Cannon Beam Cannon Mining Laser [Rating: 14] Favorites ----------- Power Ion Engine Engine Ion Engine Power Core Light Nuclear Core Propulsion Improved Aluminum Leg Treads Spiked Treads Leg Improved Aluminum Leg Utility Huge Storage Unit Device Cooling System Storage Huge Storage Unit Processor Signal Interpreter Weapon Small Laser Energy Gun Small Laser Energy Cannon Beam Cannon Ballistic Cannon Battle Cannon Special Weapon Mining Laser Build | -11 -10 -10 ------- Run | Yrd Mat Sub Slots Evolved . | . . . Power . | . . . Propulsion . | . . . Utility . | . . . Weapon . | . . . Parts Attached 29 | 6 10 13 Power 5 | 1 3 1 Engine 4 | 1 2 1 Core 1 | . 1 . Reactor . | . . . Propulsion 9 | 2 3 4 Treads 1 | . . 1 Leg 8 | 2 3 3 Wheel . | . . . Hover . | . . . Flight . | . . . Utility 5 | 1 2 2 Device 2 | . 1 1 Storage 2 | 1 1 . Processor 1 | . . 1 Hackware . | . . . Protection . | . . . Artifact . | . . . Weapon 10 | 2 2 6 Energy Gun 5 | 2 2 1 Energy Cannon 3 | . . 3 Ballistic Gun . | . . . Ballistic Cannon 1 | . . 1 Launcher . | . . . Special Weapon 1 | . . 1 Impact Weapon . | . . . Slashing Weapon . | . . . Piercing Weapon . | . . . Special Melee Weapon . | . . . Unidentified Prototypes . | . . . Parts Lost 9 | . 2 7 Power 3 | . 2 1 Propulsion 1 | . . 1 Utility 1 | . . 1 Weapon 4 | . . 4 Highest Loss Streak 4 | . 2 4 To Critical Strikes 1 | . . 1 Average Slot Usage (%) 99 | . 99 99 Engine 13 | . 13 13 Leg 27 | . 28 27 Device 6 | . 7 4 Storage 17 | . 20 14 Processor 3 | . . 9 Energy Gun 17 | . 28 1 Energy Cannon 6 | . . 15 Ballistic Cannon 4 | . . 10 Peak Build Rating 14 | 6 14 14 Average Rating 12 | 4 11 13 On Entrance 6 | . 6 14 Naked Turns . | . . . Heaviest Build 94 | 11 94 91 Greatest Support 26 | 20 26 26 Greatest Overweight (x) 6 | . 4 6 Average Overweight (x) 2 | . 2 3 Largest Inventory Capacity 25 | 8 25 25 Average Capacity 24 | 6 24 25 Most Carried 25 | 4 25 25 Average Carried 21 | 2 20 24 Final Capacity 25 | 8 25 25 Final Carried 25 | 4 25 25 Class Distribution -------------------- 100% | Mutant Dominant Class ---------------- Mutant | -10/Materials Mutant | -10/Subcaves Resources | -11 -10 -10 ----------- Run | Yrd Mat Sub Matter Collected 865 | 227 226 412 Remotely . | . . . Salvage Created 733 | . 497 236 Parts 46 | . 30 16 Haulers Intercepted 1 | . 1 . Recyclers Shooed 1 | . 1 . Parts Field Recycled . | . . . Retrieved Matter . | . . . Parts Self-Destructed 12 | . . 12 Prevented . | . . . Kills | -11 -10 -10 ------- Run | Yrd Mat Sub Combat Hostiles Destroyed 15 | . 9 6 Guns 8 | . 8 . Cannons 6 | . . 6 Classes Destroyed 9 | . 7 2 Worker 1 | . 1 . Builder 2 | . 2 . Hauler 1 | . 1 . Recycler 1 | . 1 . Watcher 3 | . 3 . Swarmer 3 | . 3 . Grunt 6 | . 6 . Artisan 1 | . . 1 Subdweller 6 | . . 6 Best Kill Streak 6 | . 6 2 Combat Bots Only 3 | . 3 2 Max Kills in Single Turn 2 | . 2 1 Gunslinging . | . . . Exploded . | . . . Melee . | . . . Uniques/NPCs Destroyed . | . . . Combat | -11 -10 -10 -------- Run | Yrd Mat Sub Hostile Shots Fired 119 | . 42 77 Missed 26 | . 9 17 Damage Taken 1362 | . 319 1043 Core 270 | . 56 214 Absorbed by Shields . | . . . Ignored by Resistances 378 | . 98 280 Core Remaining (%) 100 | 100 . . Volleys Fired 98 | . 41 57 Largest 2 | . 2 2 Hottest 160 | . 105 160 Shots Fired 194 | . 82 112 Gun 116 | . 82 34 Cannon 76 | . . 76 Launcher . | . . . Special 2 | . . 2 Kinetic 28 | . . 28 Thermal 166 | . 82 84 Explosive . | . . . Electromagnetic . | . . . Robot Hit Streak 43 | . 19 43 Robot Miss Streak 1 | . 1 1 Penetration Max . | . . . Secondary Targets 1 | . 1 . Max Gunslinging Chain 1 | . 1 . Shots Hit Robots 150 | . 68 82 Core Hits 41 | . 29 12 Critical Kills . | . . . Critical Parts Destroyed . | . . . Critical Strikes 2 | . 1 1 Burn 1 | . 1 . Blast 1 | . . 1 Melee Attacks . | . . . Impact . | . . . Slashing . | . . . Piercing . | . . . Sneak Attacks . | . . . Combat Hostiles . | . . . Follow-up Attacks . | . . . Damage Inflicted 1540 | . 872 668 Guns 870 | . 870 . Cannons 668 | . . 668 Explosions . | . . . Melee . | . . . Ramming 2 | . 2 . Kinetic 300 | . . 300 Thermal 1238 | . 870 368 Explosive . | . . . Electromagnetic . | . . . Impact . | . . . Slashing . | . . . Piercing . | . . . Highest Corruption . | . . . Average Corruption . | . . . Corruption Purged . | . . . Corruption Blocked . | . . . Overload Shots . | . . . Overflow Damage 6 | . . 6 Projectiles 6 | . . 6 Explosions . | . . . Melee . | . . . Knockbacks 3 | . . 3 Impact . | . . . Kinetic 3 | . . 3 Secondary . | . . . Self-Inflicted Damage . | . . . Shots . | . . . Rammed . | . . . Targets Rammed 1 | . 1 . Kicked 1 | . 1 . Crushed . | . . . Highest Temperature 406 | . 406 2 Average Temperature 144 | . 146 2 Received Heat Transfer 549 | . 225 324 Effects 1 | . 1 . Shutdowns 1 | . 1 . Siege Activations . | . . . Robots Corrupted . | . . . Combat Hostiles . | . . . Parts Fried . | . . . Impact Corruptions . | . . . Robots Melted 1 | . 1 . Combat Hostiles 1 | . 1 . Parts Melted 7 | . 7 . Heat Transferred 2948 | . 2171 777 Parts Sabotaged . | . . . Parts Stolen . | . . . Parts Stripped . | . . . Power Chain Reactions . | . . . Alert | -11 -10 -10 ------- Run | Yrd Mat Sub Peak Influence 199 | . 199 . Initial . | . . . Average 29 | . 30 . Maximum Alert Level . | . . . Low Security (%) 100 | 100 100 . Level 1 . | . . . Level 2 . | . . . Level 3 . | . . . Level 4 . | . . . Level 5 . | . . . High Security . | . . . Max Security . | . . . Squads Dispatched . | . . . Investigation . | . . . Extermination . | . . . Reinforcement . | . . . Assault . | . . . Garrison . | . . . Intercept . | . . . Searches Triggered . | . . . Construction Impeded . | . . . Haulers Reinforced . | . . . Active Scanning Responses . | . . . Cargo Convoy Interrupts . | . . . Stealth | -11 -10 -10 --------- Run | Yrd Mat Sub Distress Signals 1 | . 1 . Communications Jammed . | . . . Distress Signals . | . . . Times Spotted 24 | . 15 9 Peak Tracking Total 4 | . 4 2 Tactical Retreats 6 | . 2 4 Traps | -11 -10 -10 ------- Run | Yrd Mat Sub Traps Triggered 1 | . . 1 Indirectly . | . . . Trap Hack Attempts . | . . . Triggered . | . . . Disarmed . | . . . Reprogrammed . | . . . Reused . | . . . Traps Extracted . | . . . Installed . | . . . Triggered 1 | . . 1 Machines | -11 -10 -10 ---------- Run | Yrd Mat Sub Machines Disabled . | . . . Max in Single Turn . | . . . Machines Repaired . | . . . Machines Dismantled . | . . . Machines Sabotaged . | . . . Overloaded Fab Kills . | . . . Hacking | -11 -10 -10 --------- Run | Yrd Mat Sub Machines Accessed 9 | . 7 2 Terminals 7 | . 7 . Fabricators . | . . . Repair Stations . | . . . Recycling Units . | . . . Scanalyzers . | . . . Garrison Access . | . . . Total Hacks 25 | . 22 3 Successful 15 | . 12 3 Failed 10 | . 10 . Catastrophic . | . . . Database Lockouts . | . . . Manual 13 | . 13 . Terminals 22 | . 22 . Fabricators . | . . . Repair Stations . | . . . Recycling Units . | . . . Scanalyzers . | . . . Garrison Access . | . . . Terminal Hacks 9 | . 6 3 Record 1 | . . 1 Robot Analysis 1 | . 1 . Prototype ID Bank 1 | . 1 . Open Door 1 | . . 1 Branch Access Points 1 | . 1 . Emergency Access Points 1 | . 1 . Transport Status 1 | . 1 . Reinforcement Status 1 | . 1 . Release Object 1 | . . 1 Fabricator Hacks . | . . . Repair Station Hacks . | . . . Recycling Unit Hacks . | . . . Scanalyzer . | . . . Garrison Access Hacks . | . . . Unauthorized Hacks 6 | . 6 . Terminals 6 | . 6 . Botnet 6 | . 6 . Fabricators . | . . . Repair Stations . | . . . Recycling Units . | . . . Scanalyzers . | . . . Garrison Access . | . . . Data Cores Recovered . | . . . Used . | . . . Hacking Detections 7 | . 7 . Full Trace Events . | . . . Feedback Events . | . . . Feedback Blocked . | . . . Robot Schematics Acquired . | . . . Robots Built . | . . . Authchips . | . . . Time . | . . . Total Robot Build Rating . | . . . Part Schematics Acquired . | . . . Parts Built . | . . . Authchips . | . . . Time . | . . . Total Part Build Rating . | . . . Parts Repaired . | . . . Time . | . . . Parts Recycled . | . . . Recycled Matter . | . . . Retrieved Matter . | . . . Retrieved Components . | . . . Parts Scanalyzed . | . . . Part Schematics Acquired . | . . . Parts Damaged . | . . . Bothacking | -11 -10 -10 ------------ Run | Yrd Mat Sub Used RIF Installer . | . . . Robots Hacked . | . . . Non-combat . | . . . Combat . | . . . Robot Hacks Applied . | . . . Relay Couplers Released . | . . . Fabnet Peak Effective % . | . . . Robots Rewired . | . . . Allies Hacked . | . . . Hacks Repelled . | . . . Allies | -11 -10 -10 -------- Run | Yrd Mat Sub Total Allies . | . . . Largest Group . | . . . Highest-Rated Group . | . . . Highest-Rated Ally . | . . . Total Orders . | . . . Ally Attacks . | . . . Total Damage . | . . . Kills . | . . . Allies Corrupted . | . . . Allies Melted . | . . . Intel | -11 -10 -10 ------- Run | Yrd Mat Sub Robot Analysis Total 1 | . 1 . Derelict Logs Recovered 1 | . . 1 Drone Launches . | . . . Drone Recoveries . | . . . Exploration | -11 -10 -10 ------------- Run | Yrd Mat Sub Turns Passed 5039 | 69 3007 1963 Spaces Moved 1397 | 54 820 523 Core 11 | 11 . . Treads . | . . . Legs 1386 | 43 820 523 Wheels . | . . . Hover . | . . . Flight . | . . . Fastest Speed 50 | 50 120 330 Average Speed 319 | 105 326 330 Slowest Speed 540 | 120 400 540 Overloaded Moves . | . . . Propulsion Burnouts . | . . . Robots Hopped . | . . . Cave-ins Triggered . | . . . Exploration Rate (%) 47 | 3 99 40 Regions Visited 2 Branch Regions 1 Pre-discovered Areas 1 | . . 1 Known Exits Taken . | . . . Unknown Exits Taken 2 | 1 1 . Scrap Searched 3 | . . 3 Spaces Dug . | . . . Terrain Destroyed . | . . . Melee . | . . . Projectile . | . . . AOE . | . . . Terrain Rammed . | . . . Walls Destroyed . | . . . Machines Disabled . | . . . Actions | -11 -10 -10 --------- Run | Yrd Mat Sub Total 1784 | 63 1074 647 Wait 179 | . 156 23 Move 1395 | 53 819 523 Hop . | . . . Pick Up 54 | 4 32 18 Fast Attach 8 | 6 2 . Attach 8 | . 1 7 Detach . | . . . Swap 13 | . 7 6 Drop 27 | . 15 12 Fire 98 | . 41 57 Melee . | . . . Ram . | . . . Kick 1 | . 1 . Crush . | . . . Escape Stasis . | . . . Rewire . | . . . Trap . | . . . Miscellaneous 1 | . . 1 Route ------- -11/Scrapyard -10/Materials (discovered 6 exits: [*Mat x3] / *Min x2 / *Sub) -10/Subcaves (discovered 1 exit: *Mat) History --------- Turn | Location | Event 10 | -11/Scrapyard | Discovered new exit (range 15) 70 | -11/Scrapyard | Entered Materials 104 | -10/Materials | Identified exit to Mines 302 | -10/Materials | Build established: Mutant 1042 | -10/Materials | Discovered new exit (range 16) 1452 | -10/Materials | Discovered new exit (range 10) 2418 | -10/Materials | Discovered new exit (range 4) 3041 | -10/Materials | Discovered new exit (range 11) 3077 | -10/Materials | Entered Subcaves 3225 | -10/Subcaves | Lost 4 parts (1u3w) 3425 | -10/Subcaves | Shifting Twisted Machinery released Battle Cannon 3499 | -10/Subcaves | Discovered new exit (range 10) 3501 | -10/Subcaves | Shifting Twisted Machinery released Spk. Treads 3693 | -10/Subcaves | Identified exit to Materials 3850 | -10/Subcaves | Released subatomizers from SUBCON Basin 3991 | -10/Subcaves | Core integrity fell below 50% 4399 | -10/Subcaves | Learned location of Mines (-10) 5025 | -10/Subcaves | Disturbed a concealed Subdweller 5029 | -10/Subcaves | Core integrity fell below 20% 5040 | -10/Subcaves | Destroyed by TB-69O(R) with Subdweller Beam Cannon Last Messages --------------- Sink. 04767_ Acquired 4 matter. 04770_ Acquired 22 matter. 04776_ Subatomizers dissect the Disposable Heat Sink. 04777_ Acquired 3 matter. 04804_ Subatomizers dissect the Disposable Heat Sink. 04864_ XX-TLQ(R): "MADSUB!" 04879_ XX-TLQ(R) destroyed. 04892_ Acquired 32 matter. 04899_ Acquired 1 matter. 04941_ Subatomizers dissect the Sub. Power Source. 05025_ TB-69O(R) angrily emerges from the Twisted Machinery. 05031_ TB-69O(R) knocked back. 05034_ TB-69O(R) affixes Scrap Shield Fragment to Scrap Shield. 05040_ TB-69O(R) knocked back. Map ----- +----------------------------------------------------+ | | | | | | | | | | | | | ??????????????????????????????????????????? | | ??????????????????????????????????????????? | | ??????????????????????????????????????????? | | ??????????????????????????????????????????? | | ??????????????????????????????????????????? | | ??????????????????????????????????????????? | | ??????????????????????????????????????????? | | ??????????????????????????????????????????? | | ??????????????????????????????????????????? | | ??????????????????????????????????????????? | | ??????????????????????????????????????????? | | ??????????????????????????????????????????? | | ??????????????????????????????????????????? | | ????????????????##????????????????????????? | | ????????????????#